Workbook

Sheet Báo cáo Kinh doanh Sản phẩm
B1: Báo cáo Kinh doanh Sản phẩm
B20: Sản phẩm

Sheet Dữ liệu Lịch sử
B1: Danh sách Giá Sản phẩm & Doanh thu Lịch sử
B3: ID Sản phẩm | C3: Tên Sản phẩm | D3: Giá Ngày | E3: Giá Bán lẻ Mỗi Đơn vị | F3: Giá Bán sỉ Mỗi Đơn vị | G3: Đơn vị Đã bán (bán lẻ) | H3: Đơn vị Đã bán (bán sỉ) | I3: Tổng Doanh số (#) | J3: Tổng Doanh số (₫)
B4: 5 | C4: =IFERROR(IF(tblSales[[#This Row],[ID Sản phẩm]]<>"",VLOOKUP(tblSales[ID Sản phẩm],tblProducts[[ID Sản phẩm]:[Tên]],2,FALSE),""),"ID Sản phẩm Không xác định") -> Quần short | D4: 2012-01-01 | E4: 416,000 | F4: 416,000 ₫ | G4: 629 | H4: 1,254 | I4: =tblSales[[#This Row],[Đơn vị Đã bán (bán lẻ)]]+tblSales[[#This Row],[Đơn vị Đã bán (bán sỉ)]] -> 1,883 | J4: =tblSales[[#This Row],[Đơn vị Đã bán (bán lẻ)]]*tblSales[[#This Row],[Giá Bán lẻ Mỗi Đơn vị]]+tblSales[[#This Row],[Đơn vị Đã bán (bán sỉ)]]*tblSales[[#This Row],[Giá Bán sỉ Mỗi Đơn vị]] -> 783,328,000 ₫
B5: 1 | C5: =IFERROR(IF(tblSales[[#This Row],[ID Sản phẩm]]<>"",VLOOKUP(tblSales[ID Sản phẩm],tblProducts[[ID Sản phẩm]:[Tên]],2,FALSE),""),"ID Sản phẩm Không xác định") -> Áo sơ mi | D5: 2012-01-01 | E5: 1,830,400 | F5: 1,123,200 ₫ | G5: 734 | H5: 1,427 | I5: =tblSales[[#This Row],[Đơn vị Đã bán (bán lẻ)]]+tblSales[[#This Row],[Đơn vị Đã bán (bán sỉ)]] -> 2,161 | J5: =tblSales[[#This Row],[Đơn vị Đã bán (bán lẻ)]]*tblSales[[#This Row],[Giá Bán lẻ Mỗi Đơn vị]]+tblSales[[#This Row],[Đơn vị Đã bán (bán sỉ)]]*tblSales[[#This Row],[Giá Bán sỉ Mỗi Đơn vị]] -> 2,946,320,000 ₫
B6: 2 | C6: =IFERROR(IF(tblSales[[#This Row],[ID Sản phẩm]]<>"",VLOOKUP(tblSales[ID Sản phẩm],tblProducts[[ID Sản phẩm]:[Tên]],2,FALSE),""),"ID Sản phẩm Không xác định") -> Giày xăng-đan | D6: 2012-01-01 | E6: 1,456,000 | F6: 915,200 ₫ | G6: 744 | H6: 1,043 | I6: =tblSales[[#This Row],[Đơn vị Đã bán (bán lẻ)]]+tblSales[[#This Row],[Đơn vị Đã bán (bán sỉ)]] -> 1,787 | J6: =tblSales[[#This Row],[Đơn vị Đã bán (bán lẻ)]]*tblSales[[#This Row],[Giá Bán lẻ Mỗi Đơn vị]]+tblSales[[#This Row],[Đơn vị Đã bán (bán sỉ)]]*tblSales[[#This Row],[Giá Bán sỉ Mỗi Đơn vị]] -> 2,037,817,600 ₫
B7: 3 | C7: =IFERROR(IF(tblSales[[#This Row],[ID Sản phẩm]]<>"",VLOOKUP(tblSales[ID Sản phẩm],tblProducts[[ID Sản phẩm]:[Tên]],2,FALSE),""),"ID Sản phẩm Không xác định") -> Ô | D7: 2012-01-01 | E7: 1,310,400 | F7: 915,200 ₫ | G7: 681 | H7: 1,523 | I7: =tblSales[[#This Row],[Đơn vị Đã bán (bán lẻ)]]+tblSales[[#This Row],[Đơn vị Đã bán (bán sỉ)]] -> 2,204 | J7: =tblSales[[#This Row],[Đơn vị Đã bán (bán lẻ)]]*tblSales[[#This Row],[Giá Bán lẻ Mỗi Đơn vị]]+tblSales[[#This Row],[Đơn vị Đã bán (bán sỉ)]]*tblSales[[#This Row],[Giá Bán sỉ Mỗi Đơn vị]] -> 2,286,232,000 ₫
B8: 4 | C8: =IFERROR(IF(tblSales[[#This Row],[ID Sản phẩm]]<>"",VLOOKUP(tblSales[ID Sản phẩm],tblProducts[[ID Sản phẩm]:[Tên]],2,FALSE),""),"ID Sản phẩm Không xác định") -> Chai nước | D8: 2012-01-01 | E8: 728,000 | F8: 561,600 ₫ | G8: 602 | H8: 1,822 | I8: =tblSales[[#This Row],[Đơn vị Đã bán (bán lẻ)]]+tblSales[[#This Row],[Đơn vị Đã bán (bán sỉ)]] -> 2,424 | J8: =tblSales[[#This Row],[Đơn vị Đã bán (bán lẻ)]]*tblSales[[#This Row],[Giá Bán lẻ Mỗi Đơn vị]]+tblSales[[#This Row],[Đơn vị Đã bán (bán sỉ)]]*tblSales[[#This Row],[Giá Bán sỉ Mỗi Đơn vị]] -> 1,461,491,200 ₫
B9: 1 | C9: =IFERROR(IF(tblSales[[#This Row],[ID Sản phẩm]]<>"",VLOOKUP(tblSales[ID Sản phẩm],tblProducts[[ID Sản phẩm]:[Tên]],2,FALSE),""),"ID Sản phẩm Không xác định") -> Áo sơ mi | D9: 2012-02-01 | E9: 1,144,000 | F9: 915,200 ₫ | G9: 678 | H9: 1,515 | I9: =tblSales[[#This Row],[Đơn vị Đã bán (bán lẻ)]]+tblSales[[#This Row],[Đơn vị Đã bán (bán sỉ)]] -> 2,193 | J9: =tblSales[[#This Row],[Đơn vị Đã bán (bán lẻ)]]*tblSales[[#This Row],[Giá Bán lẻ Mỗi Đơn vị]]+tblSales[[#This Row],[Đơn vị Đã bán (bán sỉ)]]*tblSales[[#This Row],[Giá Bán sỉ Mỗi Đơn vị]] -> 2,162,160,000 ₫
B10: 2 | C10: =IFERROR(IF(tblSales[[#This Row],[ID Sản phẩm]]<>"",VLOOKUP(tblSales[ID Sản phẩm],tblProducts[[ID Sản phẩm]:[Tên]],2,FALSE),""),"ID Sản phẩm Không xác định") -> Giày xăng-đan | D10: 2012-02-01 | E10: 1,726,400 | F10: 1,123,200 ₫ | G10: 753 | H10: 1,005 | I10: =tblSales[[#This Row],[Đơn vị Đã bán (bán lẻ)]]+tblSales[[#This Row],[Đơn vị Đã bán (bán sỉ)]] -> 1,758 | J10: =tblSales[[#This Row],[Đơn vị Đã bán (bán lẻ)]]*tblSales[[#This Row],[Giá Bán lẻ Mỗi Đơn vị]]+tblSales[[#This Row],[Đơn vị Đã bán (bán sỉ)]]*tblSales[[#This Row],[Giá Bán sỉ Mỗi Đơn vị]] -> 2,428,795,200 ₫
B11: 3 | C11: =IFERROR(IF(tblSales[[#This Row],[ID Sản phẩm]]<>"",VLOOKUP(tblSales[ID Sản phẩm],tblProducts[[ID Sản phẩm]:[Tên]],2,FALSE),""),"ID Sản phẩm Không xác định") -> Ô | D11: 2012-02-01 | E11: 707,200 | F11: 707,200 ₫ | G11: 986 | H11: 1,069 | I11: =tblSales[[#This Row],[Đơn vị Đã bán (bán lẻ)]]+tblSales[[#This Row],[Đơn vị Đã bán (bán sỉ)]] -> 2,055 | J11: =tblSales[[#This Row],[Đơn vị Đã bán (bán lẻ)]]*tblSales[[#This Row],[Giá Bán lẻ Mỗi Đơn vị]]+tblSales[[#This Row],[Đơn vị Đã bán (bán sỉ)]]*tblSales[[#This Row],[Giá Bán sỉ Mỗi Đơn vị]] -> 1,453,296,000 ₫
B12: 4 | C12: =IFERROR(IF(tblSales[[#This Row],[ID Sản phẩm]]<>"",VLOOKUP(tblSales[ID Sản phẩm],tblProducts[[ID Sản phẩm]:[Tên]],2,FALSE),""),"ID Sản phẩm Không xác định") -> Chai nước | D12: 2012-02-01 | E12: 728,000 | F12: 520,000 ₫ | G12: 848 | H12: 1,211 | I12: =tblSales[[#This Row],[Đơn vị Đã bán (bán lẻ)]]+tblSales[[#This Row],[Đơn vị Đã bán (bán sỉ)]] -> 2,059 | J12: =tblSales[[#This Row],[Đơn vị Đã bán (bán lẻ)]]*tblSales[[#This Row],[Giá Bán lẻ Mỗi Đơn vị]]+tblSales[[#This Row],[Đơn vị Đã bán (bán sỉ)]]*tblSales[[#This Row],[Giá Bán sỉ Mỗi Đơn vị]] -> 1,247,064,000 ₫
B13: 5 | C13: =IFERROR(IF(tblSales[[#This Row],[ID Sản phẩm]]<>"",VLOOKUP(tblSales[ID Sản phẩm],tblProducts[[ID Sản phẩm]:[Tên]],2,FALSE),""),"ID Sản phẩm Không xác định") -> Quần short | D13: 2012-02-01 | E13: 852,800 | F13: 790,400 ₫ | G13: 980 | H13: 1,330 | I13: =tblSales[[#This Row],[Đơn vị Đã bán (bán lẻ)]]+tblSales[[#This Row],[Đơn vị Đã bán (bán sỉ)]] -> 2,310 | J13: =tblSales[[#This Row],[Đơn vị Đã bán (bán lẻ)]]*tblSales[[#This Row],[Giá Bán lẻ Mỗi Đơn vị]]+tblSales[[#This Row],[Đơn vị Đã bán (bán sỉ)]]*tblSales[[#This Row],[Giá Bán sỉ Mỗi Đơn vị]] -> 1,886,976,000 ₫
B14: 1 | C14: =IFERROR(IF(tblSales[[#This Row],[ID Sản phẩm]]<>"",VLOOKUP(tblSales[ID Sản phẩm],tblProducts[[ID Sản phẩm]:[Tên]],2,FALSE),""),"ID Sản phẩm Không xác định") -> Áo sơ mi | D14: 2012-02-29 | E14: 561,600 | F14: 374,400 ₫ | G14: 533 | H14: 1,936 | I14: =tblSales[[#This Row],[Đơn vị Đã bán (bán lẻ)]]+tblSales[[#This Row],[Đơn vị Đã bán (bán sỉ)]] -> 2,469 | J14: =tblSales[[#This Row],[Đơn vị Đã bán (bán lẻ)]]*tblSales[[#This Row],[Giá Bán lẻ Mỗi Đơn vị]]+tblSales[[#This Row],[Đơn vị Đã bán (bán sỉ)]]*tblSales[[#This Row],[Giá Bán sỉ Mỗi Đơn vị]] -> 1,024,171,200 ₫
B15: 2 | C15: =IFERROR(IF(tblSales[[#This Row],[ID Sản phẩm]]<>"",VLOOKUP(tblSales[ID Sản phẩm],tblProducts[[ID Sản phẩm]:[Tên]],2,FALSE),""),"ID Sản phẩm Không xác định") -> Giày xăng-đan | D15: 2012-02-29 | E15: 790,400 | F15: 582,400 ₫ | G15: 952 | H15: 1,512 | I15: =tblSales[[#This Row],[Đơn vị Đã bán (bán lẻ)]]+tblSales[[#This Row],[Đơn vị Đã bán (bán sỉ)]] -> 2,464 | J15: =tblSales[[#This Row],[Đơn vị Đã bán (bán lẻ)]]*tblSales[[#This Row],[Giá Bán lẻ Mỗi Đơn vị]]+tblSales[[#This Row],[Đơn vị Đã bán (bán sỉ)]]*tblSales[[#This Row],[Giá Bán sỉ Mỗi Đơn vị]] -> 1,633,049,600 ₫
B16: 3 | C16: =IFERROR(IF(tblSales[[#This Row],[ID Sản phẩm]]<>"",VLOOKUP(tblSales[ID Sản phẩm],tblProducts[[ID Sản phẩm]:[Tên]],2,FALSE),""),"ID Sản phẩm Không xác định") -> Ô | D16: 2012-02-29 | E16: 1,913,600 | F16: 1,913,600 ₫ | G16: 956 | H16: 1,266 | I16: =tblSales[[#This Row],[Đơn vị Đã bán (bán lẻ)]]+tblSales[[#This Row],[Đơn vị Đã bán (bán sỉ)]] -> 2,222 | J16: =tblSales[[#This Row],[Đơn vị Đã bán (bán lẻ)]]*tblSales[[#This Row],[Giá Bán lẻ Mỗi Đơn vị]]+tblSales[[#This Row],[Đơn vị Đã bán (bán sỉ)]]*tblSales[[#This Row],[Giá Bán sỉ Mỗi Đơn vị]] -> 4,252,019,200 ₫
B17: 4 | C17: =IFERROR(IF(tblSales[[#This Row],[ID Sản phẩm]]<>"",VLOOKUP(tblSales[ID Sản phẩm],tblProducts[[ID Sản phẩm]:[Tên]],2,FALSE),""),"ID Sản phẩm Không xác định") -> Chai nước | D17: 2012-02-29 | E17: 894,400 | F17: 748,800 ₫ | G17: 952 | H17: 1,390 | I17: =tblSales[[#This Row],[Đơn vị Đã bán (bán lẻ)]]+tblSales[[#This Row],[Đơn vị Đã bán (bán sỉ)]] -> 2,342 | J17: =tblSales[[#This Row],[Đơn vị Đã bán (bán lẻ)]]*tblSales[[#This Row],[Giá Bán lẻ Mỗi Đơn vị]]+tblSales[[#This Row],[Đơn vị Đã bán (bán sỉ)]]*tblSales[[#This Row],[Giá Bán sỉ Mỗi Đơn vị]] -> 1,892,300,800 ₫
B18: 5 | C18: =IFERROR(IF(tblSales[[#This Row],[ID Sản phẩm]]<>"",VLOOKUP(tblSales[ID Sản phẩm],tblProducts[[ID Sản phẩm]:[Tên]],2,FALSE),""),"ID Sản phẩm Không xác định") -> Quần short | D18: 2012-02-29 | E18: 2,038,400 | F18: 1,518,400 ₫ | G18: 530 | H18: 1,452 | I18: =tblSales[[#This Row],[Đơn vị Đã bán (bán lẻ)]]+tblSales[[#This Row],[Đơn vị Đã bán (bán sỉ)]] -> 1,982 | J18: =tblSales[[#This Row],[Đơn vị Đã bán (bán lẻ)]]*tblSales[[#This Row],[Giá Bán lẻ Mỗi Đơn vị]]+tblSales[[#This Row],[Đơn vị Đã bán (bán sỉ)]]*tblSales[[#This Row],[Giá Bán sỉ Mỗi Đơn vị]] -> 3,285,068,800 ₫
B19: 1 | C19: =IFERROR(IF(tblSales[[#This Row],[ID Sản phẩm]]<>"",VLOOKUP(tblSales[ID Sản phẩm],tblProducts[[ID Sản phẩm]:[Tên]],2,FALSE),""),"ID Sản phẩm Không xác định") -> Áo sơ mi | D19: 2012-03-31 | E19: 790,400 | F19: 582,400 ₫ | G19: 973 | H19: 1,415 | I19: =tblSales[[#This Row],[Đơn vị Đã bán (bán lẻ)]]+tblSales[[#This Row],[Đơn vị Đã bán (bán sỉ)]] -> 2,388 | J19: =tblSales[[#This Row],[Đơn vị Đã bán (bán lẻ)]]*tblSales[[#This Row],[Giá Bán lẻ Mỗi Đơn vị]]+tblSales[[#This Row],[Đơn vị Đã bán (bán sỉ)]]*tblSales[[#This Row],[Giá Bán sỉ Mỗi Đơn vị]] -> 1,593,155,200 ₫
B20: 2 | C20: =IFERROR(IF(tblSales[[#This Row],[ID Sản phẩm]]<>"",VLOOKUP(tblSales[ID Sản phẩm],tblProducts[[ID Sản phẩm]:[Tên]],2,FALSE),""),"ID Sản phẩm Không xác định") -> Giày xăng-đan | D20: 2012-03-31 | E20: 1,040,000 | F20: 748,800 ₫ | G20: 672 | H20: 1,105 | I20: =tblSales[[#This Row],[Đơn vị Đã bán (bán lẻ)]]+tblSales[[#This Row],[Đơn vị Đã bán (bán sỉ)]] -> 1,777 | J20: =tblSales[[#This Row],[Đơn vị Đã bán (bán lẻ)]]*tblSales[[#This Row],[Giá Bán lẻ Mỗi Đơn vị]]+tblSales[[#This Row],[Đơn vị Đã bán (bán sỉ)]]*tblSales[[#This Row],[Giá Bán sỉ Mỗi Đơn vị]] -> 1,526,304,000 ₫
B21: 3 | C21: =IFERROR(IF(tblSales[[#This Row],[ID Sản phẩm]]<>"",VLOOKUP(tblSales[ID Sản phẩm],tblProducts[[ID Sản phẩm]:[Tên]],2,FALSE),""),"ID Sản phẩm Không xác định") -> Ô | D21: 2012-03-31 | E21: 499,200 | F21: 478,400 ₫ | G21: 769 | H21: 1,629 | I21: =tblSales[[#This Row],[Đơn vị Đã bán (bán lẻ)]]+tblSales[[#This Row],[Đơn vị Đã bán (bán sỉ)]] -> 2,398 | J21: =tblSales[[#This Row],[Đơn vị Đã bán (bán lẻ)]]*tblSales[[#This Row],[Giá Bán lẻ Mỗi Đơn vị]]+tblSales[[#This Row],[Đơn vị Đã bán (bán sỉ)]]*tblSales[[#This Row],[Giá Bán sỉ Mỗi Đơn vị]] -> 1,163,198,400 ₫
B22: 4 | C22: =IFERROR(IF(tblSales[[#This Row],[ID Sản phẩm]]<>"",VLOOKUP(tblSales[ID Sản phẩm],tblProducts[[ID Sản phẩm]:[Tên]],2,FALSE),""),"ID Sản phẩm Không xác định") -> Chai nước | D22: 2012-03-31 | E22: 1,497,600 | F22: 1,185,600 ₫ | G22: 985 | H22: 1,848 | I22: =tblSales[[#This Row],[Đơn vị Đã bán (bán lẻ)]]+tblSales[[#This Row],[Đơn vị Đã bán (bán sỉ)]] -> 2,833 | J22: =tblSales[[#This Row],[Đơn vị Đã bán (bán lẻ)]]*tblSales[[#This Row],[Giá Bán lẻ Mỗi Đơn vị]]+tblSales[[#This Row],[Đơn vị Đã bán (bán sỉ)]]*tblSales[[#This Row],[Giá Bán sỉ Mỗi Đơn vị]] -> 3,666,124,800 ₫
B23: 5 | C23: =IFERROR(IF(tblSales[[#This Row],[ID Sản phẩm]]<>"",VLOOKUP(tblSales[ID Sản phẩm],tblProducts[[ID Sản phẩm]:[Tên]],2,FALSE),""),"ID Sản phẩm Không xác định") -> Quần short | D23: 2012-03-31 | E23: 1,768,000 | F23: 894,400 ₫ | G23: 721 | H23: 1,426 | I23: =tblSales[[#This Row],[Đơn vị Đã bán (bán lẻ)]]+tblSales[[#This Row],[Đơn vị Đã bán (bán sỉ)]] -> 2,147 | J23: =tblSales[[#This Row],[Đơn vị Đã bán (bán lẻ)]]*tblSales[[#This Row],[Giá Bán lẻ Mỗi Đơn vị]]+tblSales[[#This Row],[Đơn vị Đã bán (bán sỉ)]]*tblSales[[#This Row],[Giá Bán sỉ Mỗi Đơn vị]] -> 2,550,142,400 ₫
B24: 1 | C24: =IFERROR(IF(tblSales[[#This Row],[ID Sản phẩm]]<>"",VLOOKUP(tblSales[ID Sản phẩm],tblProducts[[ID Sản phẩm]:[Tên]],2,FALSE),""),"ID Sản phẩm Không xác định") -> Áo sơ mi | D24: 2012-04-30 | E24: 1,892,800 | F24: 1,352,000 ₫ | G24: 603 | H24: 1,226 | I24: =tblSales[[#This Row],[Đơn vị Đã bán (bán lẻ)]]+tblSales[[#This Row],[Đơn vị Đã bán (bán sỉ)]] -> 1,829 | J24: =tblSales[[#This Row],[Đơn vị Đã bán (bán lẻ)]]*tblSales[[#This Row],[Giá Bán lẻ Mỗi Đơn vị]]+tblSales[[#This Row],[Đơn vị Đã bán (bán sỉ)]]*tblSales[[#This Row],[Giá Bán sỉ Mỗi Đơn vị]] -> 2,798,910,400 ₫
B25: 2 | C25: =IFERROR(IF(tblSales[[#This Row],[ID Sản phẩm]]<>"",VLOOKUP(tblSales[ID Sản phẩm],tblProducts[[ID Sản phẩm]:[Tên]],2,FALSE),""),"ID Sản phẩm Không xác định") -> Giày xăng-đan | D25: 2012-04-30 | E25: 1,892,800 | F25: 1,144,000 ₫ | G25: 892 | H25: 1,823 | I25: =tblSales[[#This Row],[Đơn vị Đã bán (bán lẻ)]]+tblSales[[#This Row],[Đơn vị Đã bán (bán sỉ)]] -> 2,715 | J25: =tblSales[[#This Row],[Đơn vị Đã bán (bán lẻ)]]*tblSales[[#This Row],[Giá Bán lẻ Mỗi Đơn vị]]+tblSales[[#This Row],[Đơn vị Đã bán (bán sỉ)]]*tblSales[[#This Row],[Giá Bán sỉ Mỗi Đơn vị]] -> 3,773,889,600 ₫
B26: 3 | C26: =IFERROR(IF(tblSales[[#This Row],[ID Sản phẩm]]<>"",VLOOKUP(tblSales[ID Sản phẩm],tblProducts[[ID Sản phẩm]:[Tên]],2,FALSE),""),"ID Sản phẩm Không xác định") -> Ô | D26: 2012-04-30 | E26: 873,600 | F26: 873,600 ₫ | G26: 611 | H26: 1,181 | I26: =tblSales[[#This Row],[Đơn vị Đã bán (bán lẻ)]]+tblSales[[#This Row],[Đơn vị Đã bán (bán sỉ)]] -> 1,792 | J26: =tblSales[[#This Row],[Đơn vị Đã bán (bán lẻ)]]*tblSales[[#This Row],[Giá Bán lẻ Mỗi Đơn vị]]+tblSales[[#This Row],[Đơn vị Đã bán (bán sỉ)]]*tblSales[[#This Row],[Giá Bán sỉ Mỗi Đơn vị]] -> 1,565,491,200 ₫
B27: 4 | C27: =IFERROR(IF(tblSales[[#This Row],[ID Sản phẩm]]<>"",VLOOKUP(tblSales[ID Sản phẩm],tblProducts[[ID Sản phẩm]:[Tên]],2,FALSE),""),"ID Sản phẩm Không xác định") -> Chai nước | D27: 2012-04-30 | E27: 1,768,000 | F27: 894,400 ₫ | G27: 530 | H27: 1,039 | I27: =tblSales[[#This Row],[Đơn vị Đã bán (bán lẻ)]]+tblSales[[#This Row],[Đơn vị Đã bán (bán sỉ)]] -> 1,569 | J27: =tblSales[[#This Row],[Đơn vị Đã bán (bán lẻ)]]*tblSales[[#This Row],[Giá Bán lẻ Mỗi Đơn vị]]+tblSales[[#This Row],[Đơn vị Đã bán (bán sỉ)]]*tblSales[[#This Row],[Giá Bán sỉ Mỗi Đơn vị]] -> 1,866,321,600 ₫
B28: 5 | C28: =IFERROR(IF(tblSales[[#This Row],[ID Sản phẩm]]<>"",VLOOKUP(tblSales[ID Sản phẩm],tblProducts[[ID Sản phẩm]:[Tên]],2,FALSE),""),"ID Sản phẩm Không xác định") -> Quần short | D28: 2012-04-30 | E28: 1,705,600 | F28: 1,476,800 ₫ | G28: 716 | H28: 1,249 | I28: =tblSales[[#This Row],[Đơn vị Đã bán (bán lẻ)]]+tblSales[[#This Row],[Đơn vị Đã bán (bán sỉ)]] -> 1,965 | J28: =tblSales[[#This Row],[Đơn vị Đã bán (bán lẻ)]]*tblSales[[#This Row],[Giá Bán lẻ Mỗi Đơn vị]]+tblSales[[#This Row],[Đơn vị Đã bán (bán sỉ)]]*tblSales[[#This Row],[Giá Bán sỉ Mỗi Đơn vị]] -> 3,065,732,800 ₫
B29: 1 | C29: =IFERROR(IF(tblSales[[#This Row],[ID Sản phẩm]]<>"",VLOOKUP(tblSales[ID Sản phẩm],tblProducts[[ID Sản phẩm]:[Tên]],2,FALSE),""),"ID Sản phẩm Không xác định") -> Áo sơ mi | D29: 2012-05-14 | E29: 707,200 | F29: 644,800 ₫ | G29: 850 | H29: 1,548 | I29: =tblSales[[#This Row],[Đơn vị Đã bán (bán lẻ)]]+tblSales[[#This Row],[Đơn vị Đã bán (bán sỉ)]] -> 2,398 | J29: =tblSales[[#This Row],[Đơn vị Đã bán (bán lẻ)]]*tblSales[[#This Row],[Giá Bán lẻ Mỗi Đơn vị]]+tblSales[[#This Row],[Đơn vị Đã bán (bán sỉ)]]*tblSales[[#This Row],[Giá Bán sỉ Mỗi Đơn vị]] -> 1,599,270,400 ₫
B30: 2 | C30: =IFERROR(IF(tblSales[[#This Row],[ID Sản phẩm]]<>"",VLOOKUP(tblSales[ID Sản phẩm],tblProducts[[ID Sản phẩm]:[Tên]],2,FALSE),""),"ID Sản phẩm Không xác định") -> Giày xăng-đan | D30: 2012-05-14 | E30: 1,331,200 | F30: 832,000 ₫ | G30: 876 | H30: 1,663 | I30: =tblSales[[#This Row],[Đơn vị Đã bán (bán lẻ)]]+tblSales[[#This Row],[Đơn vị Đã bán (bán sỉ)]] -> 2,539 | J30: =tblSales[[#This Row],[Đơn vị Đã bán (bán lẻ)]]*tblSales[[#This Row],[Giá Bán lẻ Mỗi Đơn vị]]+tblSales[[#This Row],[Đơn vị Đã bán (bán sỉ)]]*tblSales[[#This Row],[Giá Bán sỉ Mỗi Đơn vị]] -> 2,549,747,200 ₫
B31: 3 | C31: =IFERROR(IF(tblSales[[#This Row],[ID Sản phẩm]]<>"",VLOOKUP(tblSales[ID Sản phẩm],tblProducts[[ID Sản phẩm]:[Tên]],2,FALSE),""),"ID Sản phẩm Không xác định") -> Ô | D31: 2012-05-14 | E31: 686,400 | F31: 624,000 ₫ | G31: 881 | H31: 1,149 | I31: =tblSales[[#This Row],[Đơn vị Đã bán (bán lẻ)]]+tblSales[[#This Row],[Đơn vị Đã bán (bán sỉ)]] -> 2,030 | J31: =tblSales[[#This Row],[Đơn vị Đã bán (bán lẻ)]]*tblSales[[#This Row],[Giá Bán lẻ Mỗi Đơn vị]]+tblSales[[#This Row],[Đơn vị Đã bán (bán sỉ)]]*tblSales[[#This Row],[Giá Bán sỉ Mỗi Đơn vị]] -> 1,321,694,400 ₫
B32: 4 | C32: =IFERROR(IF(tblSales[[#This Row],[ID Sản phẩm]]<>"",VLOOKUP(tblSales[ID Sản phẩm],tblProducts[[ID Sản phẩm]:[Tên]],2,FALSE),""),"ID Sản phẩm Không xác định") -> Chai nước | D32: 2012-05-14 | E32: 603,200 | F32: 561,600 ₫ | G32: 802 | H32: 1,548 | I32: =tblSales[[#This Row],[Đơn vị Đã bán (bán lẻ)]]+tblSales[[#This Row],[Đơn vị Đã bán (bán sỉ)]] -> 2,350 | J32: =tblSales[[#This Row],[Đơn vị Đã bán (bán lẻ)]]*tblSales[[#This Row],[Giá Bán lẻ Mỗi Đơn vị]]+tblSales[[#This Row],[Đơn vị Đã bán (bán sỉ)]]*tblSales[[#This Row],[Giá Bán sỉ Mỗi Đơn vị]] -> 1,353,123,200 ₫
B33: 5 | C33: =IFERROR(IF(tblSales[[#This Row],[ID Sản phẩm]]<>"",VLOOKUP(tblSales[ID Sản phẩm],tblProducts[[ID Sản phẩm]:[Tên]],2,FALSE),""),"ID Sản phẩm Không xác định") -> Quần short | D33: 2013-12-11 | E33: 499,200 | F33: 312,000 ₫ | G33: 824 | H33: 1,994 | I33: =tblSales[[#This Row],[Đơn vị Đã bán (bán lẻ)]]+tblSales[[#This Row],[Đơn vị Đã bán (bán sỉ)]] -> 2,818 | J33: =tblSales[[#This Row],[Đơn vị Đã bán (bán lẻ)]]*tblSales[[#This Row],[Giá Bán lẻ Mỗi Đơn vị]]+tblSales[[#This Row],[Đơn vị Đã bán (bán sỉ)]]*tblSales[[#This Row],[Giá Bán sỉ Mỗi Đơn vị]] -> 1,033,468,800 ₫

Sheet Danh sách Giá
B1: Danh sách Giá Sản phẩm
B3: Adventure Works
B4: 23456 Maple Street
B5: Springfield, CA 77503
B6: Điện thoại: (425) 555-0150
B7: FAX: (425) 555-0152
B8: www.adventure-works.com | F8: Được cập nhật lần cuối cùng vào 15/8/2013
B10: ID Sản phẩm | C10: Tên | D10: Mô tả | E10: Đơn giá bán lẻ | F10: Đơn giá bán sỉ
B11: 1 | C11: Áo sơ mi | D11: Giữ mát cho bạn trong suốt mùa hè với áo sơ mi 100% cotton không co. | E11: 457,600 ₫ | F11: 312,000 ₫
B12: 2 | C12: Giày xăng-đan | D12: Hãy đi đôi xăng-đan bằng cao su siêu bền và đi bộ trên cát nóng một cách thoải mái. | E12: 208,000 ₫ | F12: 124,800 ₫
B13: 3 | C13: Ô | D13: Bảo vệ bạn khỏi ánh nắng mặt trời dưới chiếc ô đi biển cực lớn ngăn chặn 96% các tia UV có hại. | E13: 624,000 ₫ | F13: 416,000 ₫
B14: 4 | C14: Chai nước | D14: Hãy cung cấp nước cho bạn với nước ở nhiệt độ hoàn hảo từ chai nước cách nhiệt của chúng tôi | E14: 145,600 ₫ | F14: 104,000 ₫
B15: 5 | C15: Quần short | D15: Hãy đi thẳng từ bể bơi đến xe của bạn trong chiếc quần short bằng ni lông siêu nhanh khô của chúng tôi. | E15: 312,000 ₫ | F15: 166,400 ₫
F17: Hãy gọi cho chúng tôi để có các hạng mục chưa niêm yết.
F18: *Giá bán sỉ áp dụng cho số lượng đơn vị là 12 hoặc nhiều hơn .

Sheet Pivot Điểm Giá (hidden)
B1: PivotTable Điểm Giá
B2: Bảng tính này nên được để ẩn. Bất kỳ sự sửa đổi nào đối với PivotTable dưới đây có thể gây ra dữ liệu không chính xác trên Báo cáo Kinh doanh Sản phẩm.
B3: Sản phẩm Được chọn: | C3: =IF(LEN(B5),B5,"Không") -> Áo sơ mi
B4: Tên Sản phẩm | C4: Giá Bán lẻ Mỗi Đơn vị | D4: Tổng của Tổng Doanh số (#)
B5: Áo sơ mi | C5: 561,600 ₫ | D5: 2469
C6: 707,200 ₫ | D6: 2398
C7: 790,400 ₫ | D7: 2388
C8: 1,144,000 ₫ | D8: 2193
C9: 1,830,400 ₫ | D9: 2161
C10: 1,892,800 ₫ | D10: 1829

Sheet Pivot Xu hướng Kinh doanh (hidden)
B1: PivotTable Xu hướng Kinh doanh
B2: Bảng tính này nên được để ẩn. Bất kỳ sự sửa đổi nào đối với PivotTable dưới đây có thể gây ra dữ liệu không chính xác trên Báo cáo Kinh doanh Sản phẩm.
B3: Tổng của Tổng Doanh số (#) | C3: Tên Sản phẩm
B4: Giá Ngày | C4: Áo sơ mi
B5: Jan | C5: 2161
B6: Feb | C6: 4662
B7: Mar | C7: 2388
B8: Apr | C8: 1829
B9: May | C9: 2398
